{"text_format":"3","workbook":"xlsx","n_sheets":2,"sheets":["Dados do Candidato","Dados Comparativos do Candidato"],"not_rendered":{"defined_names":4},"read":"whole","date_system":"1900"}

{"sheet":"Dados do Candidato","index":0,"n_rows":2,"n_cols":13,"rows_kept":2,"merged":[[0,0,0,3]]}
["Dados do Candidato"]
["Apelido","Nome","I.M.","Posição","Estado da Candidatura","Endereço Postal","Telefone da Residência","Telefone Alternativo","Endereço de Correio Electrónico","Origem da Candidatura","Data de Recepção do Currículo","Nome do Recrutador","Notas do Recrutador"]

{"sheet":"Dados Comparativos do Candidato","index":1,"n_rows":59,"n_cols":12,"rows_kept":59,"merged":[[0,0,0,3]]}
["Dados Comparativos do Candidato"]
["Apelido","Nome","I.M.","Posição","Empregador Actual","Posição Actual","Formação","Estado Actual do Visto","Anos de Experiência Relevante","Competências ou Experiência Relevantes","Nome do Recrutador","Notas do Recrutador"]
[{"$f":"IF('Dados do Candidato'!A3=\"\",\"\",'Dados do Candidato'!A3)","v":""},{"$f":"IF('Dados do Candidato'!B3=\"\",\"\",'Dados do Candidato'!B3)","v":""},{"$f":"IF('Dados do Candidato'!C3=\"\",\"\",'Dados do Candidato'!C3)","v":""},{"$f":"IF('Dados do Candidato'!D3=\"\",\"\",'Dados do Candidato'!D3)","v":""},{"$nulls":6},{"$f":"IF('Dados do Candidato'!L3=\"\",\"\",'Dados do Candidato'!L3)","v":""},{"$f":"IF('Dados do Candidato'!M3=\"\",\"\",'Dados do Candidato'!M3)","v":""}]
[{"$f":"IF('Dados do Candidato'!A4=\"\",\"\",'Dados do Candidato'!A4)","v":""},{"$f":"IF('Dados do Candidato'!B4=\"\",\"\",'Dados do Candidato'!B4)","v":""},{"$f":"IF('Dados do Candidato'!C4=\"\",\"\",'Dados do Candidato'!C4)","v":""},{"$f":"IF('Dados do Candidato'!D4=\"\",\"\",'Dados do Candidato'!D4)","v":""},{"$nulls":6},{"$f":"IF('Dados do Candidato'!L4=\"\",\"\",'Dados do Candidato'!L4)","v":""},{"$f":"IF('Dados do Candidato'!M4=\"\",\"\",'Dados do Candidato'!M4)","v":""}]
[{"$f":"IF('Dados do Candidato'!A5=\"\",\"\",'Dados do Candidato'!A5)","v":""},{"$f":"IF('Dados do Candidato'!B5=\"\",\"\",'Dados do Candidato'!B5)","v":""},{"$f":"IF('Dados do Candidato'!C5=\"\",\"\",'Dados do Candidato'!C5)","v":""},{"$f":"IF('Dados do Candidato'!D5=\"\",\"\",'Dados do Candidato'!D5)","v":""},{"$nulls":6},{"$f":"IF('Dados do Candidato'!L5=\"\",\"\",'Dados do Candidato'!L5)","v":""},{"$f":"IF('Dados do Candidato'!M5=\"\",\"\",'Dados do Candidato'!M5)","v":""}]
[{"$f":"IF('Dados do Candidato'!A6=\"\",\"\",'Dados do Candidato'!A6)","v":""},{"$f":"IF('Dados do Candidato'!B6=\"\",\"\",'Dados do Candidato'!B6)","v":""},{"$f":"IF('Dados do Candidato'!C6=\"\",\"\",'Dados do Candidato'!C6)","v":""},{"$f":"IF('Dados do Candidato'!D6=\"\",\"\",'Dados do Candidato'!D6)","v":""},{"$nulls":6},{"$f":"IF('Dados do Candidato'!L6=\"\",\"\",'Dados do Candidato'!L6)","v":""},{"$f":"IF('Dados do Candidato'!M6=\"\",\"\",'Dados do Candidato'!M6)","v":""}]
[{"$f":"IF('Dados do Candidato'!A7=\"\",\"\",'Dados do Candidato'!A7)","v":""},{"$f":"IF('Dados do Candidato'!B7=\"\",\"\",'Dados do Candidato'!B7)","v":""},{"$f":"IF('Dados do Candidato'!C7=\"\",\"\",'Dados do Candidato'!C7)","v":""},{"$f":"IF('Dados do Candidato'!D7=\"\",\"\",'Dados do Candidato'!D7)","v":""},{"$nulls":6},{"$f":"IF('Dados do Candidato'!L7=\"\",\"\",'Dados do Candidato'!L7)","v":""},{"$f":"IF('Dados do Candidato'!M7=\"\",\"\",'Dados do Candidato'!M7)","v":""}]
[{"$f":"IF('Dados do Candidato'!A8=\"\",\"\",'Dados do Candidato'!A8)","v":""},{"$f":"IF('Dados do Candidato'!B8=\"\",\"\",'Dados do Candidato'!B8)","v":""},{"$f":"IF('Dados do Candidato'!C8=\"\",\"\",'Dados do Candidato'!C8)","v":""},{"$f":"IF('Dados do Candidato'!D8=\"\",\"\",'Dados do Candidato'!D8)","v":""},{"$nulls":6},{"$f":"IF('Dados do Candidato'!L8=\"\",\"\",'Dados do Candidato'!L8)","v":""},{"$f":"IF('Dados do Candidato'!M8=\"\",\"\",'Dados do Candidato'!M8)","v":""}]
[{"$f":"IF('Dados do Candidato'!A9=\"\",\"\",'Dados do Candidato'!A9)","v":""},{"$f":"IF('Dados do Candidato'!B9=\"\",\"\",'Dados do Candidato'!B9)","v":""},{"$f":"IF('Dados do Candidato'!C9=\"\",\"\",'Dados do Candidato'!C9)","v":""},{"$f":"IF('Dados do Candidato'!D9=\"\",\"\",'Dados do Candidato'!D9)","v":""},{"$nulls":6},{"$f":"IF('Dados do Candidato'!L9=\"\",\"\",'Dados do Candidato'!L9)","v":""},{"$f":"IF('Dados do Candidato'!M9=\"\",\"\",'Dados do Candidato'!M9)","v":""}]
[{"$f":"IF('Dados do Candidato'!A10=\"\",\"\",'Dados do Candidato'!A10)","v":""},{"$f":"IF('Dados do Candidato'!B10=\"\",\"\",'Dados do Candidato'!B10)","v":""},{"$f":"IF('Dados do Candidato'!C10=\"\",\"\",'Dados do Candidato'!C10)","v":""},{"$f":"IF('Dados do Candidato'!D10=\"\",\"\",'Dados do Candidato'!D10)","v":""},{"$nulls":6},{"$f":"IF('Dados do Candidato'!L10=\"\",\"\",'Dados do Candidato'!L10)","v":""},{"$f":"IF('Dados do Candidato'!M10=\"\",\"\",'Dados do Candidato'!M10)","v":""}]
[{"$f":"IF('Dados do Candidato'!A11=\"\",\"\",'Dados do Candidato'!A11)","v":""},{"$f":"IF('Dados do Candidato'!B11=\"\",\"\",'Dados do Candidato'!B11)","v":""},{"$f":"IF('Dados do Candidato'!C11=\"\",\"\",'Dados do Candidato'!C11)","v":""},{"$f":"IF('Dados do Candidato'!D11=\"\",\"\",'Dados do Candidato'!D11)","v":""},{"$nulls":6},{"$f":"IF('Dados do Candidato'!L11=\"\",\"\",'Dados do Candidato'!L11)","v":""},{"$f":"IF('Dados do Candidato'!M11=\"\",\"\",'Dados do Candidato'!M11)","v":""}]
[{"$f":"IF('Dados do Candidato'!A12=\"\",\"\",'Dados do Candidato'!A12)","v":""},{"$f":"IF('Dados do Candidato'!B12=\"\",\"\",'Dados do Candidato'!B12)","v":""},{"$f":"IF('Dados do Candidato'!C12=\"\",\"\",'Dados do Candidato'!C12)","v":""},{"$f":"IF('Dados do Candidato'!D12=\"\",\"\",'Dados do Candidato'!D12)","v":""},{"$nulls":6},{"$f":"IF('Dados do Candidato'!L12=\"\",\"\",'Dados do Candidato'!L12)","v":""},{"$f":"IF('Dados do Candidato'!M12=\"\",\"\",'Dados do Candidato'!M12)","v":""}]
[{"$f":"IF('Dados do Candidato'!A13=\"\",\"\",'Dados do Candidato'!A13)","v":""},{"$f":"IF('Dados do Candidato'!B13=\"\",\"\",'Dados do Candidato'!B13)","v":""},{"$f":"IF('Dados do Candidato'!C13=\"\",\"\",'Dados do Candidato'!C13)","v":""},{"$f":"IF('Dados do Candidato'!D13=\"\",\"\",'Dados do Candidato'!D13)","v":""},{"$nulls":6},{"$f":"IF('Dados do Candidato'!L13=\"\",\"\",'Dados do Candidato'!L13)","v":""},{"$f":"IF('Dados do Candidato'!M13=\"\",\"\",'Dados do Candidato'!M13)","v":""}]
[{"$f":"IF('Dados do Candidato'!A14=\"\",\"\",'Dados do Candidato'!A14)","v":""},{"$f":"IF('Dados do Candidato'!B14=\"\",\"\",'Dados do Candidato'!B14)","v":""},{"$f":"IF('Dados do Candidato'!C14=\"\",\"\",'Dados do Candidato'!C14)","v":""},{"$f":"IF('Dados do Candidato'!D14=\"\",\"\",'Dados do Candidato'!D14)","v":""},{"$nulls":6},{"$f":"IF('Dados do Candidato'!L14=\"\",\"\",'Dados do Candidato'!L14)","v":""},{"$f":"IF('Dados do Candidato'!M14=\"\",\"\",'Dados do Candidato'!M14)","v":""}]
[{"$f":"IF('Dados do Candidato'!A15=\"\",\"\",'Dados do Candidato'!A15)","v":""},{"$f":"IF('Dados do Candidato'!B15=\"\",\"\",'Dados do Candidato'!B15)","v":""},{"$f":"IF('Dados do Candidato'!C15=\"\",\"\",'Dados do Candidato'!C15)","v":""},{"$f":"IF('Dados do Candidato'!D15=\"\",\"\",'Dados do Candidato'!D15)","v":""},{"$nulls":6},{"$f":"IF('Dados do Candidato'!L15=\"\",\"\",'Dados do Candidato'!L15)","v":""},{"$f":"IF('Dados do Candidato'!M15=\"\",\"\",'Dados do Candidato'!M15)","v":""}]
[{"$f":"IF('Dados do Candidato'!A16=\"\",\"\",'Dados do Candidato'!A16)","v":""},{"$f":"IF('Dados do Candidato'!B16=\"\",\"\",'Dados do Candidato'!B16)","v":""},{"$f":"IF('Dados do Candidato'!C16=\"\",\"\",'Dados do Candidato'!C16)","v":""},{"$f":"IF('Dados do Candidato'!D16=\"\",\"\",'Dados do Candidato'!D16)","v":""},{"$nulls":6},{"$f":"IF('Dados do Candidato'!L16=\"\",\"\",'Dados do Candidato'!L16)","v":""},{"$f":"IF('Dados do Candidato'!M16=\"\",\"\",'Dados do Candidato'!M16)","v":""}]
[{"$f":"IF('Dados do Candidato'!A17=\"\",\"\",'Dados do Candidato'!A17)","v":""},{"$f":"IF('Dados do Candidato'!B17=\"\",\"\",'Dados do Candidato'!B17)","v":""},{"$f":"IF('Dados do Candidato'!C17=\"\",\"\",'Dados do Candidato'!C17)","v":""},{"$f":"IF('Dados do Candidato'!D17=\"\",\"\",'Dados do Candidato'!D17)","v":""},{"$nulls":6},{"$f":"IF('Dados do Candidato'!L17=\"\",\"\",'Dados do Candidato'!L17)","v":""},{"$f":"IF('Dados do Candidato'!M17=\"\",\"\",'Dados do Candidato'!M17)","v":""}]
[{"$f":"IF('Dados do Candidato'!A18=\"\",\"\",'Dados do Candidato'!A18)","v":""},{"$f":"IF('Dados do Candidato'!B18=\"\",\"\",'Dados do Candidato'!B18)","v":""},{"$f":"IF('Dados do Candidato'!C18=\"\",\"\",'Dados do Candidato'!C18)","v":""},{"$f":"IF('Dados do Candidato'!D18=\"\",\"\",'Dados do Candidato'!D18)","v":""},{"$nulls":6},{"$f":"IF('Dados do Candidato'!L18=\"\",\"\",'Dados do Candidato'!L18)","v":""},{"$f":"IF('Dados do Candidato'!M18=\"\",\"\",'Dados do Candidato'!M18)","v":""}]
[{"$f":"IF('Dados do Candidato'!A19=\"\",\"\",'Dados do Candidato'!A19)","v":""},{"$f":"IF('Dados do Candidato'!B19=\"\",\"\",'Dados do Candidato'!B19)","v":""},{"$f":"IF('Dados do Candidato'!C19=\"\",\"\",'Dados do Candidato'!C19)","v":""},{"$f":"IF('Dados do Candidato'!D19=\"\",\"\",'Dados do Candidato'!D19)","v":""},{"$nulls":6},{"$f":"IF('Dados do Candidato'!L19=\"\",\"\",'Dados do Candidato'!L19)","v":""},{"$f":"IF('Dados do Candidato'!M19=\"\",\"\",'Dados do Candidato'!M19)","v":""}]
[{"$f":"IF('Dados do Candidato'!A20=\"\",\"\",'Dados do Candidato'!A20)","v":""},{"$f":"IF('Dados do Candidato'!B20=\"\",\"\",'Dados do Candidato'!B20)","v":""},{"$f":"IF('Dados do Candidato'!C20=\"\",\"\",'Dados do Candidato'!C20)","v":""},{"$f":"IF('Dados do Candidato'!D20=\"\",\"\",'Dados do Candidato'!D20)","v":""},{"$nulls":6},{"$f":"IF('Dados do Candidato'!L20=\"\",\"\",'Dados do Candidato'!L20)","v":""},{"$f":"IF('Dados do Candidato'!M20=\"\",\"\",'Dados do Candidato'!M20)","v":""}]
[{"$f":"IF('Dados do Candidato'!A21=\"\",\"\",'Dados do Candidato'!A21)","v":""},{"$f":"IF('Dados do Candidato'!B21=\"\",\"\",'Dados do Candidato'!B21)","v":""},{"$f":"IF('Dados do Candidato'!C21=\"\",\"\",'Dados do Candidato'!C21)","v":""},{"$f":"IF('Dados do Candidato'!D21=\"\",\"\",'Dados do Candidato'!D21)","v":""},{"$nulls":6},{"$f":"IF('Dados do Candidato'!L21=\"\",\"\",'Dados do Candidato'!L21)","v":""},{"$f":"IF('Dados do Candidato'!M21=\"\",\"\",'Dados do Candidato'!M21)","v":""}]
[{"$f":"IF('Dados do Candidato'!A22=\"\",\"\",'Dados do Candidato'!A22)","v":""},{"$f":"IF('Dados do Candidato'!B22=\"\",\"\",'Dados do Candidato'!B22)","v":""},{"$f":"IF('Dados do Candidato'!C22=\"\",\"\",'Dados do Candidato'!C22)","v":""},{"$f":"IF('Dados do Candidato'!D22=\"\",\"\",'Dados do Candidato'!D22)","v":""},{"$nulls":6},{"$f":"IF('Dados do Candidato'!L22=\"\",\"\",'Dados do Candidato'!L22)","v":""},{"$f":"IF('Dados do Candidato'!M22=\"\",\"\",'Dados do Candidato'!M22)","v":""}]
[{"$f":"IF('Dados do Candidato'!A23=\"\",\"\",'Dados do Candidato'!A23)","v":""},{"$f":"IF('Dados do Candidato'!B23=\"\",\"\",'Dados do Candidato'!B23)","v":""},{"$f":"IF('Dados do Candidato'!C23=\"\",\"\",'Dados do Candidato'!C23)","v":""},{"$f":"IF('Dados do Candidato'!D23=\"\",\"\",'Dados do Candidato'!D23)","v":""},{"$nulls":6},{"$f":"IF('Dados do Candidato'!L23=\"\",\"\",'Dados do Candidato'!L23)","v":""},{"$f":"IF('Dados do Candidato'!M23=\"\",\"\",'Dados do Candidato'!M23)","v":""}]
[{"$f":"IF('Dados do Candidato'!A24=\"\",\"\",'Dados do Candidato'!A24)","v":""},{"$f":"IF('Dados do Candidato'!B24=\"\",\"\",'Dados do Candidato'!B24)","v":""},{"$f":"IF('Dados do Candidato'!C24=\"\",\"\",'Dados do Candidato'!C24)","v":""},{"$f":"IF('Dados do Candidato'!D24=\"\",\"\",'Dados do Candidato'!D24)","v":""},{"$nulls":6},{"$f":"IF('Dados do Candidato'!L24=\"\",\"\",'Dados do Candidato'!L24)","v":""},{"$f":"IF('Dados do Candidato'!M24=\"\",\"\",'Dados do Candidato'!M24)","v":""}]
[{"$f":"IF('Dados do Candidato'!A25=\"\",\"\",'Dados do Candidato'!A25)","v":""},{"$f":"IF('Dados do Candidato'!B25=\"\",\"\",'Dados do Candidato'!B25)","v":""},{"$f":"IF('Dados do Candidato'!C25=\"\",\"\",'Dados do Candidato'!C25)","v":""},{"$f":"IF('Dados do Candidato'!D25=\"\",\"\",'Dados do Candidato'!D25)","v":""},{"$nulls":6},{"$f":"IF('Dados do Candidato'!L25=\"\",\"\",'Dados do Candidato'!L25)","v":""},{"$f":"IF('Dados do Candidato'!M25=\"\",\"\",'Dados do Candidato'!M25)","v":""}]
[{"$f":"IF('Dados do Candidato'!A26=\"\",\"\",'Dados do Candidato'!A26)","v":""},{"$f":"IF('Dados do Candidato'!B26=\"\",\"\",'Dados do Candidato'!B26)","v":""},{"$f":"IF('Dados do Candidato'!C26=\"\",\"\",'Dados do Candidato'!C26)","v":""},{"$f":"IF('Dados do Candidato'!D26=\"\",\"\",'Dados do Candidato'!D26)","v":""},{"$nulls":6},{"$f":"IF('Dados do Candidato'!L26=\"\",\"\",'Dados do Candidato'!L26)","v":""},{"$f":"IF('Dados do Candidato'!M26=\"\",\"\",'Dados do Candidato'!M26)","v":""}]
[{"$f":"IF('Dados do Candidato'!A27=\"\",\"\",'Dados do Candidato'!A27)","v":""},{"$f":"IF('Dados do Candidato'!B27=\"\",\"\",'Dados do Candidato'!B27)","v":""},{"$f":"IF('Dados do Candidato'!C27=\"\",\"\",'Dados do Candidato'!C27)","v":""},{"$f":"IF('Dados do Candidato'!D27=\"\",\"\",'Dados do Candidato'!D27)","v":""},{"$nulls":6},{"$f":"IF('Dados do Candidato'!L27=\"\",\"\",'Dados do Candidato'!L27)","v":""},{"$f":"IF('Dados do Candidato'!M27=\"\",\"\",'Dados do Candidato'!M27)","v":""}]
[{"$f":"IF('Dados do Candidato'!A28=\"\",\"\",'Dados do Candidato'!A28)","v":""},{"$f":"IF('Dados do Candidato'!B28=\"\",\"\",'Dados do Candidato'!B28)","v":""},{"$f":"IF('Dados do Candidato'!C28=\"\",\"\",'Dados do Candidato'!C28)","v":""},{"$f":"IF('Dados do Candidato'!D28=\"\",\"\",'Dados do Candidato'!D28)","v":""},{"$nulls":6},{"$f":"IF('Dados do Candidato'!L28=\"\",\"\",'Dados do Candidato'!L28)","v":""},{"$f":"IF('Dados do Candidato'!M28=\"\",\"\",'Dados do Candidato'!M28)","v":""}]
[{"$f":"IF('Dados do Candidato'!A29=\"\",\"\",'Dados do Candidato'!A29)","v":""},{"$f":"IF('Dados do Candidato'!B29=\"\",\"\",'Dados do Candidato'!B29)","v":""},{"$f":"IF('Dados do Candidato'!C29=\"\",\"\",'Dados do Candidato'!C29)","v":""},{"$f":"IF('Dados do Candidato'!D29=\"\",\"\",'Dados do Candidato'!D29)","v":""},{"$nulls":6},{"$f":"IF('Dados do Candidato'!L29=\"\",\"\",'Dados do Candidato'!L29)","v":""},{"$f":"IF('Dados do Candidato'!M29=\"\",\"\",'Dados do Candidato'!M29)","v":""}]
[{"$f":"IF('Dados do Candidato'!A30=\"\",\"\",'Dados do Candidato'!A30)","v":""},{"$f":"IF('Dados do Candidato'!B30=\"\",\"\",'Dados do Candidato'!B30)","v":""},{"$f":"IF('Dados do Candidato'!C30=\"\",\"\",'Dados do Candidato'!C30)","v":""},{"$f":"IF('Dados do Candidato'!D30=\"\",\"\",'Dados do Candidato'!D30)","v":""},{"$nulls":6},{"$f":"IF('Dados do Candidato'!L30=\"\",\"\",'Dados do Candidato'!L30)","v":""},{"$f":"IF('Dados do Candidato'!M30=\"\",\"\",'Dados do Candidato'!M30)","v":""}]
[{"$f":"IF('Dados do Candidato'!A31=\"\",\"\",'Dados do Candidato'!A31)","v":""},{"$f":"IF('Dados do Candidato'!B31=\"\",\"\",'Dados do Candidato'!B31)","v":""},{"$f":"IF('Dados do Candidato'!C31=\"\",\"\",'Dados do Candidato'!C31)","v":""},{"$f":"IF('Dados do Candidato'!D31=\"\",\"\",'Dados do Candidato'!D31)","v":""},{"$nulls":6},{"$f":"IF('Dados do Candidato'!L31=\"\",\"\",'Dados do Candidato'!L31)","v":""},{"$f":"IF('Dados do Candidato'!M31=\"\",\"\",'Dados do Candidato'!M31)","v":""}]
[{"$f":"IF('Dados do Candidato'!A32=\"\",\"\",'Dados do Candidato'!A32)","v":""},{"$f":"IF('Dados do Candidato'!B32=\"\",\"\",'Dados do Candidato'!B32)","v":""},{"$f":"IF('Dados do Candidato'!C32=\"\",\"\",'Dados do Candidato'!C32)","v":""},{"$f":"IF('Dados do Candidato'!D32=\"\",\"\",'Dados do Candidato'!D32)","v":""},{"$nulls":6},{"$f":"IF('Dados do Candidato'!L32=\"\",\"\",'Dados do Candidato'!L32)","v":""},{"$f":"IF('Dados do Candidato'!M32=\"\",\"\",'Dados do Candidato'!M32)","v":""}]
[{"$f":"IF('Dados do Candidato'!A33=\"\",\"\",'Dados do Candidato'!A33)","v":""},{"$f":"IF('Dados do Candidato'!B33=\"\",\"\",'Dados do Candidato'!B33)","v":""},{"$f":"IF('Dados do Candidato'!C33=\"\",\"\",'Dados do Candidato'!C33)","v":""},{"$f":"IF('Dados do Candidato'!D33=\"\",\"\",'Dados do Candidato'!D33)","v":""},{"$nulls":6},{"$f":"IF('Dados do Candidato'!L33=\"\",\"\",'Dados do Candidato'!L33)","v":""},{"$f":"IF('Dados do Candidato'!M33=\"\",\"\",'Dados do Candidato'!M33)","v":""}]
[{"$f":"IF('Dados do Candidato'!A34=\"\",\"\",'Dados do Candidato'!A34)","v":""},{"$f":"IF('Dados do Candidato'!B34=\"\",\"\",'Dados do Candidato'!B34)","v":""},{"$f":"IF('Dados do Candidato'!C34=\"\",\"\",'Dados do Candidato'!C34)","v":""},{"$f":"IF('Dados do Candidato'!D34=\"\",\"\",'Dados do Candidato'!D34)","v":""},{"$nulls":6},{"$f":"IF('Dados do Candidato'!L34=\"\",\"\",'Dados do Candidato'!L34)","v":""},{"$f":"IF('Dados do Candidato'!M34=\"\",\"\",'Dados do Candidato'!M34)","v":""}]
[{"$f":"IF('Dados do Candidato'!A35=\"\",\"\",'Dados do Candidato'!A35)","v":""},{"$f":"IF('Dados do Candidato'!B35=\"\",\"\",'Dados do Candidato'!B35)","v":""},{"$f":"IF('Dados do Candidato'!C35=\"\",\"\",'Dados do Candidato'!C35)","v":""},{"$f":"IF('Dados do Candidato'!D35=\"\",\"\",'Dados do Candidato'!D35)","v":""},{"$nulls":6},{"$f":"IF('Dados do Candidato'!L35=\"\",\"\",'Dados do Candidato'!L35)","v":""},{"$f":"IF('Dados do Candidato'!M35=\"\",\"\",'Dados do Candidato'!M35)","v":""}]
[{"$f":"IF('Dados do Candidato'!A36=\"\",\"\",'Dados do Candidato'!A36)","v":""},{"$f":"IF('Dados do Candidato'!B36=\"\",\"\",'Dados do Candidato'!B36)","v":""},{"$f":"IF('Dados do Candidato'!C36=\"\",\"\",'Dados do Candidato'!C36)","v":""},{"$f":"IF('Dados do Candidato'!D36=\"\",\"\",'Dados do Candidato'!D36)","v":""},{"$nulls":6},{"$f":"IF('Dados do Candidato'!L36=\"\",\"\",'Dados do Candidato'!L36)","v":""},{"$f":"IF('Dados do Candidato'!M36=\"\",\"\",'Dados do Candidato'!M36)","v":""}]
[{"$f":"IF('Dados do Candidato'!A37=\"\",\"\",'Dados do Candidato'!A37)","v":""},{"$f":"IF('Dados do Candidato'!B37=\"\",\"\",'Dados do Candidato'!B37)","v":""},{"$f":"IF('Dados do Candidato'!C37=\"\",\"\",'Dados do Candidato'!C37)","v":""},{"$f":"IF('Dados do Candidato'!D37=\"\",\"\",'Dados do Candidato'!D37)","v":""},{"$nulls":6},{"$f":"IF('Dados do Candidato'!L37=\"\",\"\",'Dados do Candidato'!L37)","v":""},{"$f":"IF('Dados do Candidato'!M37=\"\",\"\",'Dados do Candidato'!M37)","v":""}]
[{"$f":"IF('Dados do Candidato'!A38=\"\",\"\",'Dados do Candidato'!A38)","v":""},{"$f":"IF('Dados do Candidato'!B38=\"\",\"\",'Dados do Candidato'!B38)","v":""},{"$f":"IF('Dados do Candidato'!C38=\"\",\"\",'Dados do Candidato'!C38)","v":""},{"$f":"IF('Dados do Candidato'!D38=\"\",\"\",'Dados do Candidato'!D38)","v":""},{"$nulls":6},{"$f":"IF('Dados do Candidato'!L38=\"\",\"\",'Dados do Candidato'!L38)","v":""},{"$f":"IF('Dados do Candidato'!M38=\"\",\"\",'Dados do Candidato'!M38)","v":""}]
[{"$f":"IF('Dados do Candidato'!A39=\"\",\"\",'Dados do Candidato'!A39)","v":""},{"$f":"IF('Dados do Candidato'!B39=\"\",\"\",'Dados do Candidato'!B39)","v":""},{"$f":"IF('Dados do Candidato'!C39=\"\",\"\",'Dados do Candidato'!C39)","v":""},{"$f":"IF('Dados do Candidato'!D39=\"\",\"\",'Dados do Candidato'!D39)","v":""},{"$nulls":6},{"$f":"IF('Dados do Candidato'!L39=\"\",\"\",'Dados do Candidato'!L39)","v":""},{"$f":"IF('Dados do Candidato'!M39=\"\",\"\",'Dados do Candidato'!M39)","v":""}]
[{"$f":"IF('Dados do Candidato'!A40=\"\",\"\",'Dados do Candidato'!A40)","v":""},{"$f":"IF('Dados do Candidato'!B40=\"\",\"\",'Dados do Candidato'!B40)","v":""},{"$f":"IF('Dados do Candidato'!C40=\"\",\"\",'Dados do Candidato'!C40)","v":""},{"$f":"IF('Dados do Candidato'!D40=\"\",\"\",'Dados do Candidato'!D40)","v":""},{"$nulls":6},{"$f":"IF('Dados do Candidato'!L40=\"\",\"\",'Dados do Candidato'!L40)","v":""},{"$f":"IF('Dados do Candidato'!M40=\"\",\"\",'Dados do Candidato'!M40)","v":""}]
[{"$f":"IF('Dados do Candidato'!A41=\"\",\"\",'Dados do Candidato'!A41)","v":""},{"$f":"IF('Dados do Candidato'!B41=\"\",\"\",'Dados do Candidato'!B41)","v":""},{"$f":"IF('Dados do Candidato'!C41=\"\",\"\",'Dados do Candidato'!C41)","v":""},{"$f":"IF('Dados do Candidato'!D41=\"\",\"\",'Dados do Candidato'!D41)","v":""},{"$nulls":6},{"$f":"IF('Dados do Candidato'!L41=\"\",\"\",'Dados do Candidato'!L41)","v":""},{"$f":"IF('Dados do Candidato'!M41=\"\",\"\",'Dados do Candidato'!M41)","v":""}]
[{"$f":"IF('Dados do Candidato'!A42=\"\",\"\",'Dados do Candidato'!A42)","v":""},{"$f":"IF('Dados do Candidato'!B42=\"\",\"\",'Dados do Candidato'!B42)","v":""},{"$f":"IF('Dados do Candidato'!C42=\"\",\"\",'Dados do Candidato'!C42)","v":""},{"$f":"IF('Dados do Candidato'!D42=\"\",\"\",'Dados do Candidato'!D42)","v":""},{"$nulls":6},{"$f":"IF('Dados do Candidato'!L42=\"\",\"\",'Dados do Candidato'!L42)","v":""},{"$f":"IF('Dados do Candidato'!M42=\"\",\"\",'Dados do Candidato'!M42)","v":""}]
[{"$f":"IF('Dados do Candidato'!A43=\"\",\"\",'Dados do Candidato'!A43)","v":""},{"$f":"IF('Dados do Candidato'!B43=\"\",\"\",'Dados do Candidato'!B43)","v":""},{"$f":"IF('Dados do Candidato'!C43=\"\",\"\",'Dados do Candidato'!C43)","v":""},{"$f":"IF('Dados do Candidato'!D43=\"\",\"\",'Dados do Candidato'!D43)","v":""},{"$nulls":6},{"$f":"IF('Dados do Candidato'!L43=\"\",\"\",'Dados do Candidato'!L43)","v":""},{"$f":"IF('Dados do Candidato'!M43=\"\",\"\",'Dados do Candidato'!M43)","v":""}]
[{"$f":"IF('Dados do Candidato'!A44=\"\",\"\",'Dados do Candidato'!A44)","v":""},{"$f":"IF('Dados do Candidato'!B44=\"\",\"\",'Dados do Candidato'!B44)","v":""},{"$f":"IF('Dados do Candidato'!C44=\"\",\"\",'Dados do Candidato'!C44)","v":""},{"$f":"IF('Dados do Candidato'!D44=\"\",\"\",'Dados do Candidato'!D44)","v":""},{"$nulls":6},{"$f":"IF('Dados do Candidato'!L44=\"\",\"\",'Dados do Candidato'!L44)","v":""},{"$f":"IF('Dados do Candidato'!M44=\"\",\"\",'Dados do Candidato'!M44)","v":""}]
[{"$f":"IF('Dados do Candidato'!A45=\"\",\"\",'Dados do Candidato'!A45)","v":""},{"$f":"IF('Dados do Candidato'!B45=\"\",\"\",'Dados do Candidato'!B45)","v":""},{"$f":"IF('Dados do Candidato'!C45=\"\",\"\",'Dados do Candidato'!C45)","v":""},{"$f":"IF('Dados do Candidato'!D45=\"\",\"\",'Dados do Candidato'!D45)","v":""},{"$nulls":6},{"$f":"IF('Dados do Candidato'!L45=\"\",\"\",'Dados do Candidato'!L45)","v":""},{"$f":"IF('Dados do Candidato'!M45=\"\",\"\",'Dados do Candidato'!M45)","v":""}]
[{"$f":"IF('Dados do Candidato'!A46=\"\",\"\",'Dados do Candidato'!A46)","v":""},{"$f":"IF('Dados do Candidato'!B46=\"\",\"\",'Dados do Candidato'!B46)","v":""},{"$f":"IF('Dados do Candidato'!C46=\"\",\"\",'Dados do Candidato'!C46)","v":""},{"$f":"IF('Dados do Candidato'!D46=\"\",\"\",'Dados do Candidato'!D46)","v":""},{"$nulls":6},{"$f":"IF('Dados do Candidato'!L46=\"\",\"\",'Dados do Candidato'!L46)","v":""},{"$f":"IF('Dados do Candidato'!M46=\"\",\"\",'Dados do Candidato'!M46)","v":""}]
[{"$f":"IF('Dados do Candidato'!A47=\"\",\"\",'Dados do Candidato'!A47)","v":""},{"$f":"IF('Dados do Candidato'!B47=\"\",\"\",'Dados do Candidato'!B47)","v":""},{"$f":"IF('Dados do Candidato'!C47=\"\",\"\",'Dados do Candidato'!C47)","v":""},{"$f":"IF('Dados do Candidato'!D47=\"\",\"\",'Dados do Candidato'!D47)","v":""},{"$nulls":6},{"$f":"IF('Dados do Candidato'!L47=\"\",\"\",'Dados do Candidato'!L47)","v":""},{"$f":"IF('Dados do Candidato'!M47=\"\",\"\",'Dados do Candidato'!M47)","v":""}]
[{"$f":"IF('Dados do Candidato'!A48=\"\",\"\",'Dados do Candidato'!A48)","v":""},{"$f":"IF('Dados do Candidato'!B48=\"\",\"\",'Dados do Candidato'!B48)","v":""},{"$f":"IF('Dados do Candidato'!C48=\"\",\"\",'Dados do Candidato'!C48)","v":""},{"$f":"IF('Dados do Candidato'!D48=\"\",\"\",'Dados do Candidato'!D48)","v":""},{"$nulls":6},{"$f":"IF('Dados do Candidato'!L48=\"\",\"\",'Dados do Candidato'!L48)","v":""},{"$f":"IF('Dados do Candidato'!M48=\"\",\"\",'Dados do Candidato'!M48)","v":""}]
[{"$f":"IF('Dados do Candidato'!A49=\"\",\"\",'Dados do Candidato'!A49)","v":""},{"$f":"IF('Dados do Candidato'!B49=\"\",\"\",'Dados do Candidato'!B49)","v":""},{"$f":"IF('Dados do Candidato'!C49=\"\",\"\",'Dados do Candidato'!C49)","v":""},{"$f":"IF('Dados do Candidato'!D49=\"\",\"\",'Dados do Candidato'!D49)","v":""},{"$nulls":6},{"$f":"IF('Dados do Candidato'!L49=\"\",\"\",'Dados do Candidato'!L49)","v":""},{"$f":"IF('Dados do Candidato'!M49=\"\",\"\",'Dados do Candidato'!M49)","v":""}]
[{"$f":"IF('Dados do Candidato'!A50=\"\",\"\",'Dados do Candidato'!A50)","v":""},{"$f":"IF('Dados do Candidato'!B50=\"\",\"\",'Dados do Candidato'!B50)","v":""},{"$f":"IF('Dados do Candidato'!C50=\"\",\"\",'Dados do Candidato'!C50)","v":""},{"$f":"IF('Dados do Candidato'!D50=\"\",\"\",'Dados do Candidato'!D50)","v":""},{"$nulls":6},{"$f":"IF('Dados do Candidato'!L50=\"\",\"\",'Dados do Candidato'!L50)","v":""},{"$f":"IF('Dados do Candidato'!M50=\"\",\"\",'Dados do Candidato'!M50)","v":""}]
[{"$f":"IF('Dados do Candidato'!A51=\"\",\"\",'Dados do Candidato'!A51)","v":""},{"$f":"IF('Dados do Candidato'!B51=\"\",\"\",'Dados do Candidato'!B51)","v":""},{"$f":"IF('Dados do Candidato'!C51=\"\",\"\",'Dados do Candidato'!C51)","v":""},{"$f":"IF('Dados do Candidato'!D51=\"\",\"\",'Dados do Candidato'!D51)","v":""},{"$nulls":6},{"$f":"IF('Dados do Candidato'!L51=\"\",\"\",'Dados do Candidato'!L51)","v":""},{"$f":"IF('Dados do Candidato'!M51=\"\",\"\",'Dados do Candidato'!M51)","v":""}]
[{"$f":"IF('Dados do Candidato'!A52=\"\",\"\",'Dados do Candidato'!A52)","v":""},{"$f":"IF('Dados do Candidato'!B52=\"\",\"\",'Dados do Candidato'!B52)","v":""},{"$f":"IF('Dados do Candidato'!C52=\"\",\"\",'Dados do Candidato'!C52)","v":""},{"$f":"IF('Dados do Candidato'!D52=\"\",\"\",'Dados do Candidato'!D52)","v":""},{"$nulls":6},{"$f":"IF('Dados do Candidato'!L52=\"\",\"\",'Dados do Candidato'!L52)","v":""},{"$f":"IF('Dados do Candidato'!M52=\"\",\"\",'Dados do Candidato'!M52)","v":""}]
[{"$f":"IF('Dados do Candidato'!A53=\"\",\"\",'Dados do Candidato'!A53)","v":""},{"$f":"IF('Dados do Candidato'!B53=\"\",\"\",'Dados do Candidato'!B53)","v":""},{"$f":"IF('Dados do Candidato'!C53=\"\",\"\",'Dados do Candidato'!C53)","v":""},{"$f":"IF('Dados do Candidato'!D53=\"\",\"\",'Dados do Candidato'!D53)","v":""},{"$nulls":6},{"$f":"IF('Dados do Candidato'!L53=\"\",\"\",'Dados do Candidato'!L53)","v":""},{"$f":"IF('Dados do Candidato'!M53=\"\",\"\",'Dados do Candidato'!M53)","v":""}]
[{"$f":"IF('Dados do Candidato'!A54=\"\",\"\",'Dados do Candidato'!A54)","v":""},{"$f":"IF('Dados do Candidato'!B54=\"\",\"\",'Dados do Candidato'!B54)","v":""},{"$f":"IF('Dados do Candidato'!C54=\"\",\"\",'Dados do Candidato'!C54)","v":""},{"$f":"IF('Dados do Candidato'!D54=\"\",\"\",'Dados do Candidato'!D54)","v":""},{"$nulls":6},{"$f":"IF('Dados do Candidato'!L54=\"\",\"\",'Dados do Candidato'!L54)","v":""},{"$f":"IF('Dados do Candidato'!M54=\"\",\"\",'Dados do Candidato'!M54)","v":""}]
[{"$f":"IF('Dados do Candidato'!A55=\"\",\"\",'Dados do Candidato'!A55)","v":""},{"$f":"IF('Dados do Candidato'!B55=\"\",\"\",'Dados do Candidato'!B55)","v":""},{"$f":"IF('Dados do Candidato'!C55=\"\",\"\",'Dados do Candidato'!C55)","v":""},{"$f":"IF('Dados do Candidato'!D55=\"\",\"\",'Dados do Candidato'!D55)","v":""},{"$nulls":6},{"$f":"IF('Dados do Candidato'!L55=\"\",\"\",'Dados do Candidato'!L55)","v":""},{"$f":"IF('Dados do Candidato'!M55=\"\",\"\",'Dados do Candidato'!M55)","v":""}]
[{"$f":"IF('Dados do Candidato'!A56=\"\",\"\",'Dados do Candidato'!A56)","v":""},{"$f":"IF('Dados do Candidato'!B56=\"\",\"\",'Dados do Candidato'!B56)","v":""},{"$f":"IF('Dados do Candidato'!C56=\"\",\"\",'Dados do Candidato'!C56)","v":""},{"$f":"IF('Dados do Candidato'!D56=\"\",\"\",'Dados do Candidato'!D56)","v":""},{"$nulls":6},{"$f":"IF('Dados do Candidato'!L56=\"\",\"\",'Dados do Candidato'!L56)","v":""},{"$f":"IF('Dados do Candidato'!M56=\"\",\"\",'Dados do Candidato'!M56)","v":""}]
[{"$f":"IF('Dados do Candidato'!A57=\"\",\"\",'Dados do Candidato'!A57)","v":""},{"$f":"IF('Dados do Candidato'!B57=\"\",\"\",'Dados do Candidato'!B57)","v":""},{"$f":"IF('Dados do Candidato'!C57=\"\",\"\",'Dados do Candidato'!C57)","v":""},{"$f":"IF('Dados do Candidato'!D57=\"\",\"\",'Dados do Candidato'!D57)","v":""},{"$nulls":6},{"$f":"IF('Dados do Candidato'!L57=\"\",\"\",'Dados do Candidato'!L57)","v":""},{"$f":"IF('Dados do Candidato'!M57=\"\",\"\",'Dados do Candidato'!M57)","v":""}]
[{"$f":"IF('Dados do Candidato'!A58=\"\",\"\",'Dados do Candidato'!A58)","v":""},{"$f":"IF('Dados do Candidato'!B58=\"\",\"\",'Dados do Candidato'!B58)","v":""},{"$f":"IF('Dados do Candidato'!C58=\"\",\"\",'Dados do Candidato'!C58)","v":""},{"$f":"IF('Dados do Candidato'!D58=\"\",\"\",'Dados do Candidato'!D58)","v":""},{"$nulls":6},{"$f":"IF('Dados do Candidato'!L58=\"\",\"\",'Dados do Candidato'!L58)","v":""},{"$f":"IF('Dados do Candidato'!M58=\"\",\"\",'Dados do Candidato'!M58)","v":""}]
[{"$f":"IF('Dados do Candidato'!A59=\"\",\"\",'Dados do Candidato'!A59)","v":""},{"$f":"IF('Dados do Candidato'!B59=\"\",\"\",'Dados do Candidato'!B59)","v":""},{"$f":"IF('Dados do Candidato'!C59=\"\",\"\",'Dados do Candidato'!C59)","v":""},{"$f":"IF('Dados do Candidato'!D59=\"\",\"\",'Dados do Candidato'!D59)","v":""},{"$nulls":6},{"$f":"IF('Dados do Candidato'!L59=\"\",\"\",'Dados do Candidato'!L59)","v":""},{"$f":"IF('Dados do Candidato'!M59=\"\",\"\",'Dados do Candidato'!M59)","v":""}]